[Event "98th Caplin Hastings Masters 2024-25"]
[Site "Hastings"]
[Date "2024.12.28"]
[Round "1.41"]
[White "Saunders, Aron"]
[Black "Zhou, Yang-Fan"]
[Result "1/2-1/2"]
[ECO "B40"]
[WhiteElo "2106"]
[BlackElo "2424"]
[Annotator "TA"]
[PlyCount "88"]
[EventDate "2024.12.23"]
[EventType "swiss"]
[EventCountry "ENG"]
[SourceTitle "playchess.com"]
[Source "ChessBase"]
[SourceQuality "1"]
[TimeControl "5400+30"]

{[%evp 9,88,11,0,0,29,-6,11,-8,1,-15,-12,-7,8,-30,-32,-41,-35,-36,-30,-21,-27,-22,-34,-30,-38,-21,-25,-12,-5,-20,-12,-20,-14,-39,0,-58,38,45,51,41,45,17,31,0,0,0,0,0,0,0,0,0,0,0,0,-6,0,0,0,0,0,0,0,0,0,0,0,0,0,0,0,0,0,0,0,0,0,0,0,0,0]} 1. e4 {[%emt 0:00:03]} c5 {[%emt 0:02:09]} 2. Nf3 {[%emt 0:00:09]} e6 {[%emt 0:00:05]} 3. b3 {[%emt 0:00:07]} a6 {[%emt 0:00:12]} 4. Bb2 {[%emt 0:00:18]} Nc6 {[%emt 0:00:52]} 5. Be2 {[%emt 0:02:05]} Nf6 {[%emt 0:05:39]} 6. e5 {[%emt 0:02:18]} Nd5 {[%emt 0:00:30]} 7. Nc3 {[%emt 0:01:50]} Nxc3 {[%emt 0:02:01]} 8. Bxc3 {[%emt 0:04:19]} d5 {[%emt 0:08:25]} 9. exd6 {[%emt 0:00:52]} Bxd6 {[%emt 0:00:46]} 10. O-O {[%emt 0:05:34]} e5 {[%emt 0:11:24]} 11. d3 {[%emt 0:05:56]} O-O {[%emt 0:00:55]} 12. Nd2 {[%emt 0:02:45]} Nd4 {[%emt 0:01:07]} 13. Re1 {[%emt 0:02:49]} b5 {[%emt 0:09:26]} 14. Bf3 {[%emt 0:11:45]} Rb8 {[%emt 0:02:45]} 15. a4 {[%emt 0:03:03]} Re8 {[%emt 0:04:59]} 16. axb5 {[%emt 0:01:21]} axb5 {[%emt 0:00:04]} 17. Be4 {[%emt 0:03:39]} f5 {[%emt 0:04:13]} 18. Bd5+ {[%emt 0:00:38]} Kh8 {[%emt 0:01:21]} 19. g3 {[%emt 0:03:40]} Bb7 {[%emt 0:06:29]} 20. Bxb7 {[%emt 0:00:37]} Rxb7 {[%emt 0:00:01]} 21. Ra6 {[%emt 0:03:36]} Rbe7 {[%emt 0:05:09]} 22. b4 {[%emt 0:08:18]} (22. Nf3 $11) 22... cxb4 {[%emt 0:05:44]} (22... Ne6 $15 23. Qb1 (23. Bxe5 $2 Nc7 $17) 23... Nc7 24. bxc5 Nxa6 25. cxd6 Qxd6 26. Qxb5 Nc7) 23. Bxd4 $14 {[%emt 0:00:13]} exd4 {[%emt 0:00:01]} 24. Rxe7 {[%emt 0:00:20]} Bxe7 {[%emt 0:00:13]} 25. Re6 {[%emt 0:04:35] Qe2 poses a challenge} Bf6 {[%emt 0:02:48]} 26. Rxe8+ {[%emt 0:00:41]} Qxe8 {[%emt 0:00:01][%mdl 4096] Endgame KQB-KQN. Black is a pawn up.} 27. Qb1 {[%emt 0:03:43]} Qe7 {[%emt 0:01:46]} 28. Qa2 {[%emt 0:00:58]} h6 {[%emt 0:01:14]} 29. Nf3 {[%emt 0:02:19]} Qc7 {[%emt 0:03:49]} 30. Qb3 {[%emt 0:02:53]} Qc3 {[%emt 0:02:06]} 31. h4 {[%emt 0:03:04]} f4 {[%emt 0:03:30]} 32. Kg2 {[%emt 0:01:05]} Qc5 {[%emt 0:02:57]} 33. Nd2 {[%emt 0:02:37]} Qh5 {[%emt 0:05:13] And now ...fxg3 would win.} 34. Ne4 {[%emt 0:05:10]} fxg3 {[%emt 0:06:09]} 35. fxg3 {[%emt 0:00:08]} Qe2+ {[%emt 0:00:10]} 36. Kg1 {[%emt 0:01:03]} Qd1+ {[%emt 0:01:16]} 37. Kf2 {[%emt 0:00:31]} Be5 {[%emt 0:00:40]} 38. Qa2 {[%emt 0:02:12]} Kh7 {[%emt 0:00:35]} 39. Qb3 {[%emt 0:00:11]} Qc1 {[%emt 0:01:12]} 40. Qa2 {[%emt 0:00:54]} Qe3+ {[%emt 0:00:51]} 41. Kg2 {[%emt 0:00:05]} Qe2+ {[%emt 0:00:10]} 42. Kg1 {[%emt 0:00:07]} Qe3+ {[%emt 0:01:09]} 43. Kg2 {[%emt 0:00:06]} Qe2+ {[%emt 0:00:38]} 44. Kg1 {[%emt 0:00:04]} Bd6 {[%emt 0:01:07]} 1/2-1/2

[Event "98th Caplin Hastings Masters 2024-25"]
[Site "Hastings"]
[Date "2024.12.28"]
[Round "1.42"]
[White "Norinkeviciute, Rasa"]
[Black "Graham, Oliver"]
[Result "1-0"]
[ECO "A20"]
[WhiteElo "1952"]
[BlackElo "1789"]
[Annotator "RC"]
[PlyCount "105"]
[EventDate "2024.12.23"]
[EventType "swiss"]
[EventCountry "ENG"]
[SourceTitle "playchess.com"]
[Source "ChessBase"]
[SourceQuality "1"]
[TimeControl "5400+30"]

1. c4 {[%emt 0:00:06]} e5 {[%emt 0:00:27]} 2. g3 {[%emt 0:00:12]} Nc6 {[%emt 0:00:28]} 3. Bg2 {[%emt 0:00:05]} Nf6 {[%emt 0:00:28]} 4. Nc3 {[%emt 0:00:35]} a6 {[%emt 0:00:29]} 5. a3 {[%emt 0:04:33]} Be7 {[%emt 0:01:00]} 6. e4 {[%emt 0:01:25]} Nd4 {[%emt 0:01:18]} 7. d3 {[%emt 0:00:47]} d6 {[%emt 0:01:54]} 8. h3 {[%emt 0:00:24]} Be6 {[%emt 0:01:21]} 9. Nge2 {[%emt 0:01:10]} Nxe2 {[%emt 0:00:46]} 10. Qxe2 {[%emt 0:02:17]} Nd7 {[%emt 0:02:36]} 11. O-O {[%emt 0:02:49]} Nc5 {[%emt 0:02:25]} 12. Qc2 {[%emt 0:03:28]} O-O {[%emt 0:02:09]} 13. b4 {[%emt 0:00:53]} Nd7 {[%emt 0:00:17]} 14. Kh2 {[%emt 0:01:45]} Rb8 {[%emt 0:00:23]} 15. f4 {[%emt 0:12:47]} exf4 {[%emt 0:04:51]} 16. Bxf4 {[%emt 0:00:37]} Bg5 {[%emt 0:00:15]} 17. Ne2 {[%emt 0:01:17]} Ne5 {[%emt 0:02:47]} 18. Nd4 {[%emt 0:03:16]} Bf6 {[%emt 0:06:54]} 19. Be3 {[%emt 0:06:33]} Bd7 {[%emt 0:00:59]} 20. Rad1 {[%emt 0:01:13]} Bg4 {[%emt 0:17:32]} 21. Rde1 {[%emt 0:03:42]} Bh5 {[%emt 0:00:53]} 22. Nf5 {[%emt 0:02:16]} Bg6 {[%emt 0:01:29]} 23. Rd1 {[%emt 0:16:07]} Nc6 {[%emt 0:00:46]} 24. d4 {[%emt 0:00:27]} Bxf5 {[%emt 0:01:02]} 25. Rxf5 {[%emt 0:05:22]} Ne7 {[%emt 0:01:36]} 26. Rf2 {[%emt 0:00:53]} Ng6 {[%emt 0:00:34]} 27. e5 {[%emt 0:04:02]} Be7 {[%emt 0:00:42]} 28. exd6 {[%emt 0:01:26]} Qxd6 {[%emt 0:01:55]} 29. d5 {[%emt 0:02:48]} Bf6 {[%emt 0:00:37]} 30. Bc5 {[%emt 0:02:10]} Qd7 {[%emt 0:04:15]} 31. Bxf8 {[%emt 0:01:04]} Rxf8 {[%emt 0:00:45]} 32. Be4 {[%emt 0:02:21]} b6 {[%emt 0:04:13]} 33. Bf5 {[%emt 0:02:06]} Qd8 {[%emt 0:01:12]} 34. Re2 {[%emt 0:01:29]} Qd6 {[%emt 0:03:23]} 35. c5 {[%emt 0:00:23]} Qd8 {[%emt 0:00:48]} 36. d6 {[%emt 0:00:52]} bxc5 {[%emt 0:00:41]} 37. bxc5 {[%emt 0:00:25]} cxd6 {[%emt 0:00:10]} 38. Rxd6 {[%emt 0:02:13]} Qa5 {[%emt 0:00:44]} 39. a4 {[%emt 0:01:27]} Rb8 {[%emt 0:06:24]} 40. Qe4 {[%emt 0:07:07]} Qxc5 {[%emt 0:02:22]} 41. Rxa6 {[%emt 0:00:05]} Nf8 {[%emt 0:03:32]} 42. Rc6 {[%emt 0:00:58]} Qa3 {[%emt 0:03:30]} 43. Rc8 {[%emt 0:00:49]} Rxc8 {[%emt 0:04:01]} 44. Bxc8 {[%emt 0:00:05]} g6 {[%emt 0:00:30]} 45. Qc4 {[%emt 0:01:12]} Qf3 {[%emt 0:02:47]} 46. Qe4 {[%emt 0:00:35]} Qc3 {[%emt 0:00:56]} 47. Rc2 {[%emt 0:00:28]} Qa5 {[%emt 0:01:15]} 48. Qc4 {[%emt 0:00:45]} Qe1 {[%emt 0:00:28]} 49. Re2 {[%emt 0:00:14]} Qa1 {[%emt 0:00:59]} 50. Rf2 {[%emt 0:00:46]} Kg7 {[%emt 0:00:44]} 51. Qf4 {[%emt 0:01:04]} h6 {[%emt 0:06:59]} 52. Qxf6+ {[%emt 0:01:50]} Qxf6 {[%emt 0:00:47]} 53. Rxf6 {[%emt 0:00:02]} 1-0

[Event "98th Caplin Hastings Masters 2024-25"]
[Site "Hastings"]
[Date "2024.12.28"]
[Round "1.43"]
[White "Miller, Daniel"]
[Black "Samarasinghe Jude, Ranga"]
[Result "0-1"]
[ECO "A40"]
[WhiteElo "1789"]
[BlackElo "1944"]
[Annotator "RC"]
[PlyCount "104"]
[EventDate "2024.12.23"]
[EventType "swiss"]
[EventCountry "ENG"]
[SourceTitle "playchess.com"]
[Source "ChessBase"]
[SourceQuality "1"]
[TimeControl "5400+30"]

1. d4 {[%emt 0:00:41]} e6 {[%emt 0:06:19]} 2. Nf3 {[%emt 0:02:06]} f5 {[%emt 0:01:18]} 3. g3 {[%emt 0:02:34]} d5 {[%emt 0:02:24]} 4. b3 {[%emt 0:03:22]} c6 {[%emt 0:00:54]} 5. c4 {[%emt 0:01:53]} Nf6 {[%emt 0:01:03]} 6. Bg2 {[%emt 0:03:42]} Bd6 {[%emt 0:00:40]} 7. O-O {[%emt 0:03:09]} Qe7 {[%emt 0:00:15]} 8. a4 {[%emt 0:00:54]} O-O {[%emt 0:02:05]} 9. Ba3 {[%emt 0:03:10]} Nbd7 {[%emt 0:00:23]} 10. Qc1 {[%emt 0:04:50]} Ne4 {[%emt 0:01:21]} 11. Ne5 {[%emt 0:01:24]} Nxe5 {[%emt 0:04:24]} 12. dxe5 {[%emt 0:01:23]} Bxa3 {[%emt 0:00:09]} 13. Nxa3 {[%emt 0:00:22]} Qb4 {[%emt 0:07:02]} 14. Bxe4 {[%emt 0:05:13]} fxe4 {[%emt 0:00:36]} 15. Rb1 {[%emt 0:05:04]} Bd7 {[%emt 0:00:55]} 16. e3 {[%emt 0:06:07]} Be8 {[%emt 0:01:08]} 17. Nc2 {[%emt 0:01:16]} Qe7 {[%emt 0:01:42]} 18. Qd1 {[%emt 0:04:35]} Qg5 {[%emt 0:08:12]} 19. Qd4 {[%emt 0:07:18]} Bh5 {[%emt 0:00:24]} 20. f4 {[%emt 0:05:19]} exf3 {[%emt 0:00:34]} 21. Rf2 {[%emt 0:02:11]} Rf5 {[%emt 0:16:49]} 22. Ne1 {[%emt 0:03:07]} Raf8 {[%emt 0:13:31]} 23. Nd3 {[%emt 0:01:19]} Bg6 {[%emt 0:09:48]} 24. Rbf1 {[%emt 0:01:04]} R5f7 {[%emt 0:03:52]} 25. Nf4 {[%emt 0:00:11]} Qg4 {[%emt 0:00:04]} 26. Rxf3 {[%emt 0:04:19]} Be4 {[%emt 0:00:08]} 27. h3 {[%emt 0:07:46]} Qg5 {[%emt 0:03:19]} 28. Kh2 {[%emt 0:03:26]} Qh6 {[%emt 0:02:12]} 29. R3f2 {[%emt 0:03:58]} g5 {[%emt 0:00:07]} 30. Nd3 {[%emt 0:00:18]} Bxd3 {[%emt 0:00:04]} 31. Rf6 {[%emt 0:03:18]} Bg6 {[%emt 0:05:51]} 32. cxd5 {[%emt 0:01:10]} cxd5 {[%emt 0:00:23]} 33. Rc1 {[%emt 0:00:45]} Qg7 {[%emt 0:02:09]} 34. Rcf1 {[%emt 0:00:40]} h5 {[%emt 0:01:41]} 35. Qxa7 {[%emt 0:05:44]} Rxf6 {[%emt 0:00:52]} 36. exf6 {[%emt 0:01:28]} Rxf6 {[%emt 0:00:16]} 37. Rxf6 {[%emt 0:00:55]} Qxf6 {[%emt 0:00:05]} 38. e4 {[%emt 0:00:19]} Qb2+ {[%emt 0:00:27]} 39. Kg1 {[%emt 0:00:16]} Qc1+ {[%emt 0:01:05]} 40. Kf2 {[%emt 0:00:20]} Qd2+ {[%emt 0:00:35]} 41. Kg1 {[%emt 0:00:24]} Qc1+ {[%emt 0:01:56]} 42. Kf2 {[%emt 0:00:15]} Qb2+ {[%emt 0:00:22]} 43. Kg1 {[%emt 0:00:21]} Qg7 {[%emt 0:00:05]} 44. exd5 {[%emt 0:01:03]} exd5 {[%emt 0:00:04]} 45. Qb8+ {[%emt 0:01:29]} Kh7 {[%emt 0:00:06]} 46. Qa7 {[%emt 0:00:29]} d4 {[%emt 0:00:07]} 47. Kf1 {[%emt 0:00:37]} d3 {[%emt 0:00:08]} 48. Qe3 {[%emt 0:00:36]} Qa1+ {[%emt 0:01:07]} 49. Kf2 {[%emt 0:00:24]} Qb2+ {[%emt 0:00:14]} 50. Kg1 {[%emt 0:00:36]} Qe2 {[%emt 0:00:40]} 51. Qxe2 {[%emt 0:01:19]} dxe2 {[%emt 0:00:09]} 52. Kf2 {[%emt 0:00:13]} Bc2 {[%emt 0:00:18]} 0-1

[Event "98th Caplin Hastings Masters 2024-25"]
[Site "Hastings"]
[Date "2024.12.28"]
[Round "1.44"]
[White "Mikalajunas, Kajus"]
[Black "Prudent, Sylvio"]
[Result "1-0"]
[ECO "A04"]
[WhiteElo "1941"]
[BlackElo "1780"]
[Annotator "RC"]
[PlyCount "71"]
[EventDate "2024.12.23"]
[EventType "swiss"]
[EventCountry "ENG"]
[SourceTitle "playchess.com"]
[Source "ChessBase"]
[SourceQuality "1"]
[TimeControl "5400+30"]

1. Nf3 {[%emt 0:00:06]} f5 {[%emt 0:25:10]} 2. g3 {[%emt 0:00:10]} Nf6 {[%emt 0:00:28]} 3. Bg2 {[%emt 0:00:07]} g6 {[%emt 0:00:07]} 4. O-O {[%emt 0:00:08]} Bg7 {[%emt 0:00:10]} 5. b3 {[%emt 0:00:11]} d6 {[%emt 0:00:12]} 6. d4 {[%emt 0:00:07]} O-O {[%emt 0:00:15]} 7. Bb2 {[%emt 0:00:07]} Nbd7 {[%emt 0:00:16]} 8. d5 {[%emt 0:02:33]} Qe8 {[%emt 0:01:38]} 9. c4 {[%emt 0:05:52]} e5 {[%emt 0:00:51]} 10. dxe6 {[%emt 0:01:19]} Qxe6 {[%emt 0:00:23]} 11. Nc3 {[%emt 0:08:39]} a6 {[%emt 0:04:27]} 12. Nd5 {[%emt 0:06:14]} Nxd5 {[%emt 0:03:00]} 13. Ng5 {[%emt 0:03:09]} Qe7 {[%emt 0:01:56]} 14. Bxd5+ {[%emt 0:01:16]} Kh8 {[%emt 0:00:09]} 15. Bxg7+ {[%emt 0:00:46]} Qxg7 {[%emt 0:00:38]} 16. Ne6 {[%emt 0:00:28]} Qe5 {[%emt 0:00:53]} 17. Nxf8 {[%emt 0:00:56]} Nxf8 {[%emt 0:00:07]} 18. e3 {[%emt 0:09:27]} c5 {[%emt 0:10:57]} 19. Qd2 {[%emt 0:01:52]} Nd7 {[%emt 0:19:45]} 20. Rad1 {[%emt 0:01:06]} a5 {[%emt 0:00:20]} 21. f4 {[%emt 0:04:54]} Qe7 {[%emt 0:01:17]} 22. Rfe1 {[%emt 0:02:35]} Nf6 {[%emt 0:00:51]} 23. Qc3 {[%emt 0:01:08]} Be6 {[%emt 0:01:23]} 24. e4 {[%emt 0:01:58]} Bxd5 {[%emt 0:00:59]} 25. exd5 {[%emt 0:00:24]} Qg7 {[%emt 0:01:42]} 26. Re6 {[%emt 0:00:41]} Ne4 {[%emt 0:00:28]} 27. Qxg7+ {[%emt 0:00:34]} Kxg7 {[%emt 0:00:05]} 28. Re7+ {[%emt 0:00:24]} Kf6 {[%emt 0:01:10]} 29. Rxh7 {[%emt 0:01:24]} Rb8 {[%emt 0:01:35]} 30. g4 {[%emt 0:02:35]} fxg4 {[%emt 0:01:49]} 31. Re1 {[%emt 0:00:10]} Re8 {[%emt 0:05:33]} 32. Kg2 {[%emt 0:02:36]} g5 {[%emt 0:00:37]} 33. Rh6+ {[%emt 0:00:14]} Kf5 {[%emt 0:04:06]} 34. Re6 {[%emt 0:00:18]} Rxe6 {[%emt 0:00:10]} 35. dxe6 {[%emt 0:00:08]} gxf4 {[%emt 0:00:14]} 36. Rxe4 {[%emt 0:00:18]} 1-0

[Event "98th Caplin Hastings Masters 2024-25"]
[Site "Hastings"]
[Date "2024.12.28"]
[Round "1.45"]
[White "Wilson, Matthew R"]
[Black "Hu, Junyan"]
[Result "0-1"]
[ECO "B22"]
[WhiteElo "1766"]
[BlackElo "1933"]
[Annotator "NA RC"]
[PlyCount "92"]
[EventDate "2024.12.23"]
[EventType "swiss"]
[EventCountry "ENG"]
[SourceTitle "playchess.com"]
[Source "ChessBase"]
[SourceQuality "1"]
[TimeControl "5400+30"]

1. e4 {[%emt 0:00:04]} c5 {[%emt 0:00:16]} 2. Nf3 {[%emt 0:00:04]} e6 {[%emt 0:00:13]} 3. c3 {[%emt 0:00:07]} d5 {[%emt 0:00:29]} 4. exd5 {[%emt 0:00:08]} Qxd5 {[%emt 0:00:21]} 5. d4 {[%emt 0:00:19]} Nf6 {[%emt 0:00:52]} 6. Na3 {[%emt 0:00:53]} Nc6 {[%emt 0:00:38]} 7. Be3 {[%emt 0:05:41]} cxd4 {[%emt 0:01:43]} 8. Nb5 {[%emt 0:01:02]} Qd7 {[%emt 0:00:15]} 9. Nbxd4 {[%emt 0:02:25]} Be7 {[%emt 0:00:33]} 10. Bb5 {[%emt 0:03:06]} Qc7 {[%emt 0:02:22]} 11. O-O {[%emt 0:04:22]} O-O {[%emt 0:00:50]} 12. Nxc6 {[%emt 0:04:09]} bxc6 {[%emt 0:00:09]} 13. Bd3 {[%emt 0:06:49]} Rd8 {[%emt 0:01:06]} 14. Qc2 {[%emt 0:00:37]} Bb7 {[%emt 0:01:19]} 15. Bd4 {[%emt 0:03:59]} h6 {[%emt 0:00:50]} 16. Be5 {[%emt 0:03:29]} Qb6 {[%emt 0:00:45]} 17. Nd2 {[%emt 0:06:13]} c5 {[%emt 0:06:16]} 18. Nc4 {[%emt 0:04:02]} Qc6 {[%emt 0:00:32]} 19. f3 {[%emt 0:01:48]} Ba6 {[%emt 0:05:11]} 20. b3 {[%emt 0:12:25]} Nd5 {[%emt 0:02:12]} 21. Rfe1 {[%emt 0:05:55]} Bg5 {[%emt 0:01:25]} 22. Kf2 {[%emt 0:08:32]} Bxc4 {[%emt 0:09:18]} 23. bxc4 {[%emt 0:04:54]} Nb6 {[%emt 0:02:55]} 24. Be4 {[%emt 0:08:02]} Qe8 {[%emt 0:02:48]} 25. Re2 {[%emt 0:02:46]} Rac8 {[%emt 0:03:51]} 26. Bb7 {[%emt 0:00:27]} Nxc4 {[%emt 0:02:49]} 27. Bxc8 {[%emt 0:02:40]} Nxe5 {[%emt 0:00:24]} 28. Ba6 {[%emt 0:01:45]} Qc6 {[%emt 0:01:07]} 29. Qe4 {[%emt 0:01:07]} Qxa6 {[%emt 0:03:53]} 30. Qxe5 {[%emt 0:00:08]} Rd5 {[%emt 0:00:12]} 31. Qe4 {[%emt 0:01:02]} Qb6 {[%emt 0:01:51]} 32. Rb1 {[%emt 0:00:17]} Qc7 {[%emt 0:00:24]} 33. g3 {[%emt 0:01:18]} c4 {[%emt 0:00:46]} 34. Reb2 {[%emt 0:01:56]} Qc5+ {[%emt 0:01:47]} 35. Kg2 {[%emt 0:00:19]} g6 {[%emt 0:00:57]} 36. h4 {[%emt 0:03:23]} Bf6 {[%emt 0:00:30]} 37. Rb8+ {[%emt 0:00:45]} Kg7 {[%emt 0:00:30]} 38. Qc2 {[%emt 0:01:27]} Qd6 {[%emt 0:00:40]} 39. R8b2 {[%emt 0:00:19]} Rd3 {[%emt 0:01:52]} 40. Qf2 {[%emt 0:00:41]} Bxc3 {[%emt 0:00:23]} 41. Rc2 {[%emt 0:00:18]} Bd4 {[%emt 0:03:01]} 42. Qe2 {[%emt 0:00:10]} Be5 {[%emt 0:00:45]} 43. Kh3 {[%emt 0:00:21]} Bxg3 {[%emt 0:04:02]} 44. Rxc4 {[%emt 0:00:02]} Rd2 {[%emt 0:02:18]} 45. Qe4 {[%emt 0:01:36]} Rh2+ {[%emt 0:01:09]} 46. Kg4 {[%emt 0:00:05]} h5+ {[%emt 0:00:10]} 0-1

[Event "98th Caplin Hastings Masters 2024-25"]
[Site "Hastings"]
[Date "2024.12.28"]
[Round "1.46"]
[White "Fryer, David W"]
[Black "Jacobs, Simon"]
[Result "1/2-1/2"]
[ECO "B12"]
[WhiteElo "1928"]
[BlackElo "1756"]
[Annotator "NA"]
[PlyCount "117"]
[EventDate "2024.12.23"]
[EventType "swiss"]
[EventCountry "ENG"]
[SourceTitle "playchess.com"]
[Source "ChessBase"]
[SourceQuality "1"]
[TimeControl "5400+30"]

1. e4 {[%emt 0:00:02]} c6 {[%emt 0:00:07]} 2. d4 {[%emt 0:00:36]} d5 {[%emt 0:00:07]} 3. e5 {[%emt 0:00:09]} c5 {[%emt 0:00:08]} 4. dxc5 {[%emt 0:00:54]} e6 {[%emt 0:00:12]} 5. Qg4 {[%emt 0:01:22]} h5 {[%emt 0:00:41]} 6. Qf4 {[%emt 0:00:55]} Bxc5 {[%emt 0:01:05]} 7. Nc3 {[%emt 0:02:36]} f6 {[%emt 0:05:34]} 8. Bd3 {[%emt 0:13:36]} Nc6 {[%emt 0:03:54]} 9. Nf3 {[%emt 0:04:14]} g5 {[%emt 0:11:33]} 10. Bg6+ {[%emt 0:04:37]} Kd7 {[%emt 0:00:39]} 11. Qg3 {[%emt 0:13:16]} g4 {[%emt 0:05:07]} 12. Nh4 {[%emt 0:01:10]} Nxe5 {[%emt 0:01:19]} 13. O-O {[%emt 0:03:46]} Ne7 {[%emt 0:03:29]} 14. Bd3 {[%emt 0:03:32]} Nxd3 {[%emt 0:03:26]} 15. Qxd3 {[%emt 0:00:13]} b6 {[%emt 0:07:19]} 16. Ne4 {[%emt 0:05:47]} Nc6 {[%emt 0:07:57]} 17. Ng6 {[%emt 0:03:08]} Rg8 {[%emt 0:04:10]} 18. Nxc5+ {[%emt 0:01:56]} bxc5 {[%emt 0:00:17]} 19. Nf4 {[%emt 0:01:05]} Ne5 {[%emt 0:07:52]} 20. Qb5+ {[%emt 0:07:52]} Kd6 {[%emt 0:00:25]} 21. b4 {[%emt 0:01:31]} Qb6 {[%emt 0:03:15]} 22. bxc5+ {[%emt 0:01:16]} Qxc5 {[%emt 0:00:10]} 23. Qxc5+ {[%emt 0:03:12]} Kxc5 {[%emt 0:00:07]} 24. Ba3+ {[%emt 0:01:04]} Kc6 {[%emt 0:02:43]} 25. Be7 {[%emt 0:02:31]} Ng6 {[%emt 0:07:24]} 26. Nxg6 {[%emt 0:01:41]} Rxg6 {[%emt 0:00:08]} 27. Rfe1 {[%emt 0:03:19]} e5 {[%emt 0:03:53]} 28. c3 {[%emt 0:01:34]} Ba6 {[%emt 0:04:06]} 29. a4 {[%emt 0:02:45]} Re8 {[%emt 0:00:00]} 30. Ba3 {[%emt 0:00:23]} h4 {[%emt 0:00:00]} 31. Rab1 {[%emt 0:01:26]} g3 {[%emt 0:02:03]} 32. h3 {[%emt 0:02:44]} gxf2+ {[%emt 0:00:24]} 33. Kxf2 {[%emt 0:00:10]} Reg8 {[%emt 0:00:10]} 34. Rg1 {[%emt 0:00:16]} Bd3 {[%emt 0:01:13]} 35. Rb2 {[%emt 0:01:29]} Be4 {[%emt 0:00:15]} 36. Kf1 {[%emt 0:00:51]} a5 {[%emt 0:02:48]} 37. Rf2 {[%emt 0:00:53]} f5 {[%emt 0:02:38]} 38. Be7 {[%emt 0:01:54]} Rg3 {[%emt 0:00:30]} 39. Bxh4 {[%emt 0:03:18]} Rxc3 {[%emt 0:00:09]} 40. Ra2 {[%emt 0:02:00]} Rc2 {[%emt 0:02:11]} 41. Rxc2+ {[%emt 0:01:28]} Bxc2 {[%emt 0:00:03]} 42. Bf6 {[%emt 0:00:45]} Kd6 {[%emt 0:00:45]} 43. g4 {[%emt 0:00:16]} fxg4 {[%emt 0:00:43]} 44. hxg4 {[%emt 0:00:15]} Bxa4 {[%emt 0:00:23]} 45. g5 {[%emt 0:00:14]} Be8 {[%emt 0:00:18]} 46. Ke2 {[%emt 0:00:59]} a4 {[%emt 0:00:19]} 47. Kd2 {[%emt 0:00:36]} e4 {[%emt 0:01:47]} 48. Kc3 {[%emt 0:01:00]} Kc5 {[%emt 0:00:07]} 49. Be7+ {[%emt 0:00:36]} Kc6 {[%emt 0:01:22]} 50. Ra1 {[%emt 0:01:15]} Kd7 {[%emt 0:00:19]} 51. Bf6 {[%emt 0:00:12]} Ke6 {[%emt 0:00:07]} 52. Kd4 {[%emt 0:01:09]} Bd7 {[%emt 0:03:08]} 53. Rb1 {[%emt 0:00:46]} Rc8 {[%emt 0:00:43]} 54. Rb6+ {[%emt 0:00:35]} Rc6 {[%emt 0:00:23]} 55. Rxc6+ {[%emt 0:00:34]} Bxc6 {[%emt 0:00:05]} 56. Ke3 {[%emt 0:01:19]} Kf5 {[%emt 0:00:43]} 57. Be7 {[%emt 0:00:33]} a3 {[%emt 0:00:37]} 58. Bxa3 {[%emt 0:00:14]} Kxg5 {[%emt 0:00:06]} 59. Bb2 $11 {[%emt 0:00:35]} 1/2-1/2

[Event "98th Caplin Hastings Masters 2024-25"]
[Site "Hastings"]
[Date "2024.12.28"]
[Round "1.47"]
[White "Swiatkowski, Dominik"]
[Black "Alcindor, Samuel"]
[Result "0-1"]
[ECO "B38"]
[WhiteElo "1744"]
[BlackElo "1927"]
[Annotator "NA"]
[PlyCount "38"]
[EventDate "2024.12.23"]
[EventType "swiss"]
[EventCountry "ENG"]
[SourceTitle "playchess.com"]
[Source "ChessBase"]
[SourceQuality "1"]
[TimeControl "5400+30"]

1. e4 {[%emt 0:00:03]} c5 {[%emt 0:23:24]} 2. Nf3 {[%emt 0:00:04]} g6 {[%emt 0:00:27]} 3. d4 {[%emt 0:00:29]} cxd4 {[%emt 0:00:08]} 4. Nxd4 {[%emt 0:00:05]} Nc6 {[%emt 0:00:10]} 5. c4 {[%emt 0:00:05]} Bg7 {[%emt 0:00:04]} 6. Be3 {[%emt 0:00:05]} Nf6 {[%emt 0:00:07]} 7. f3 {[%emt 0:13:23]} Qb6 {[%emt 0:20:35]} 8. Nf5 {[%emt 0:50:03]} Qxb2 {[%emt 0:02:04]} 9. Nxg7+ {[%emt 0:00:58]} Kf8 {[%emt 0:00:09]} 10. Bh6 {[%emt 0:05:13]} Qxa1 {[%emt 0:04:47]} 11. g4 {[%emt 0:03:34]} Ne5 {[%emt 0:13:54]} 12. g5 {[%emt 0:20:07]} Nxf3+ {[%emt 0:06:37]} 13. Qxf3 {[%emt 0:01:32]} Qxb1+ {[%emt 0:00:17]} 14. Kf2 {[%emt 0:00:29]} Nxe4+ {[%emt 0:01:47]} 15. Kg2 {[%emt 0:00:39]} Kg8 {[%emt 0:01:40] [#]} 16. Be2 $11 {[%emt 0:00:59]} Qc2 {[%emt 0:01:55]} 17. Rf1 {[%emt 0:00:34]} Nd6 {[%emt 0:02:33]} 18. Ne8 {[%emt 0:00:32]} Nf5 {[%emt 0:00:57]} 19. Rf2 {[%emt 0:00:32]} Nh4+ {[%emt 0:00:27]} 0-1

[Event "98th Caplin Hastings Masters 2024-25"]
[Site "Hastings"]
[Date "2024.12.28"]
[Round "1.48"]
[White "Ahn, Sungmin"]
[Black "Han, Yongsu"]
[Result "1-0"]
[ECO "C54"]
[WhiteElo "1926"]
[BlackElo "1718"]
[Annotator "RC"]
[PlyCount "61"]
[EventDate "2024.12.23"]
[EventType "swiss"]
[EventCountry "ENG"]
[SourceTitle "playchess.com"]
[Source "ChessBase"]
[SourceQuality "1"]
[TimeControl "5400+30"]

1. e4 {[%emt 0:00:05]} e5 {[%emt 0:00:09]} 2. Nf3 {[%emt 0:00:05]} Nc6 {[%emt 0:00:05]} 3. Bc4 {[%emt 0:00:42]} Bc5 {[%emt 0:00:10]} 4. c3 {[%emt 0:00:03]} Nf6 {[%emt 0:00:06]} 5. d3 {[%emt 0:00:04]} O-O {[%emt 0:00:34]} 6. Nbd2 {[%emt 0:03:14]} d6 {[%emt 0:05:21]} 7. Bb3 {[%emt 0:01:04]} Be6 {[%emt 0:02:08]} 8. O-O {[%emt 0:05:58]} Bxb3 {[%emt 0:03:46]} 9. axb3 {[%emt 0:01:13]} d5 {[%emt 0:02:40]} 10. b4 {[%emt 0:00:39]} Bb6 {[%emt 0:07:09]} 11. b5 {[%emt 0:02:53]} Nb8 {[%emt 0:02:31]} 12. Nxe5 {[%emt 0:08:42]} Qe8 {[%emt 0:03:12]} 13. d4 {[%emt 0:14:26]} dxe4 {[%emt 0:06:01]} 14. Re1 {[%emt 0:06:55]} Qxb5 {[%emt 0:08:34]} 15. Nxe4 {[%emt 0:03:03]} Nxe4 {[%emt 0:02:23]} 16. Rxe4 {[%emt 0:00:01]} Qd5 {[%emt 0:05:26]} 17. Rh4 {[%emt 0:08:15]} f6 {[%emt 0:09:50]} 18. Nf3 {[%emt 0:04:18]} c5 {[%emt 0:05:54]} 19. Qc2 {[%emt 0:04:09]} f5 {[%emt 0:07:14]} 20. dxc5 {[%emt 0:04:31]} Bxc5 {[%emt 0:03:27]} 21. b4 {[%emt 0:01:17]} Be7 {[%emt 0:01:29]} 22. Bg5 {[%emt 0:03:03]} Bxg5 {[%emt 0:01:27]} 23. Nxg5 {[%emt 0:00:06]} h6 {[%emt 0:00:13]} 24. Rd1 {[%emt 0:02:17]} Re8 {[%emt 0:04:00]} 25. h3 {[%emt 0:02:20]} Qe5 {[%emt 0:01:46]} 26. Qb3+ {[%emt 0:00:51]} Kh8 {[%emt 0:03:23]} 27. Nf7+ {[%emt 0:00:52]} Kh7 {[%emt 0:00:07]} 28. Nxe5 {[%emt 0:00:23]} Rxe5 {[%emt 0:00:06]} 29. Rd8 {[%emt 0:00:57]} Re1+ {[%emt 0:01:49]} 30. Kh2 {[%emt 0:00:02]} Re7 {[%emt 0:00:05]} 31. Qd5 {[%emt 0:01:17]} 1-0